bitfinex-derivatives/quotes_SOLF0:USTF0_20251006
["timestamp","ask_amount","ask_price","bid_price","bid_amount"]
[1759716104419,7.91,231.45,231.39,12.94512315]
[1759716104728,7.91,231.45,231.36,7.53]
[1759716105612,7.91,231.45,231.38,3.8884]
[1759716107224,7.91,231.45,231.38,16.68042761]
[1759716107824,1.24186771,231.43,231.38,12.79202761]
[1759716108127,60.45,231.53,231.32,7.62]
[1759716108128,1.24186771,231.4,231.32,7.62]
[1759716109124,1.24186771,231.4,231.33,7.62]
[1759716109716,1.24186771,231.4,231.34,3.8891]
[1759716110626,1.24186771,231.4,231.34,16.57964789]
[1759716110927,60.45,231.53,231.34,12.69054789]
[1759716110928,7.93,231.36,231.34,12.69054789]
[1759716111130,7.93,231.36,231.29,7.62]
[1759716112328,7.93,231.33,231.29,7.62]
[1759716112924,1.24186771,231.34,231.25,11.5106]
[1759716112925,9.17186771,231.34,231.25,11.5106]
[1759716113227,1.24186771,231.31,231.25,11.5106]
[1759716113825,1.24186771,231.31,231.25,7.62]
[1759716114031,9.17186771,231.31,231.22,3.891]
[1759716115932,1.24186771,231.28,231.21,7.62]
[1759716116330,4.04230892,231.5,231.23,60.5275]
[1759716116528,1.24186771,231.36,231.24,8.86186771]
[1759716117126,1.24186771,231.33,231.24,8.86186771]
[1759716117336,1.24186771,231.33,231.24,7.62]
[1759716118532,7.93,231.32,231.24,7.62]
[1759716120232,7.93,231.29,231.21,12.8257064]
[1759716120536,1.24186771,231.27,231.2,11.5114]
[1759716120732,7.93,231.29,231.22,3.8911]
[1759716121132,7.93,231.29,231.2,7.62]
[1759716121731,7.93,231.29,231.2,8.86186771]
[1759716122538,7.93,231.29,231.21,3.8913]
[1759716122934,7.93,231.29,231.2,20.31823247]
[1759716123138,1.24186771,231.27,231.2,20.31823247]
[1759716123932,60.4822,231.41,231.2,20.31823247]
[1759716123933,7.93,231.36,231.23,7.62]
[1759716124129,188.50140892,231.5,231.27,1.24186771]
[1759716124130,19.36,231.38,231.27,1.24186771]
[1759716124335,1.24186771,231.39,231.28,7.62]
[1759716125537,7.93,231.38,231.28,7.62]
[1759716126940,1.24186771,231.41,231.31,7.62]
[1759716127440,7.93,231.42,231.31,7.62]
[1759716128339,7.93,231.42,231.35,3.8889]
[1759716129436,7.93,231.42,231.34,7.62]
[1759716130230,60.499,231.34,231.17,7.62]
[1759716130430,1.24186771,231.21,231.1,0.75166857]
[1759716131344,1.24186771,231.18,231.1,0.75166857]
[1759716132045,7.93,231.23,231.11,60.5587]
[1759716132343,7.93,231.23,231.13,7.62]
[1759716132344,1.24186771,231.2,231.13,7.62]
[1759716133033,7.93,231.23,231.13,7.62]
[1759716133441,10.92280653,231.23,231.13,7.62]
[1759716134242,2.99280653,231.23,231.1,13.76030984]
[1759716134542,7.93,231.22,231.1,13.76030984]
[1759716134746,7.93,231.22,231.08,7.62]
[1759716134941,2.99280653,231.18,231.08,7.62]
[1759716135147,7.93,231.17,231.08,7.62]
[1759716135540,7.93,231.17,231.04,8.3730756]
[1759716135844,7.93,231.17,231.04,12.2671756]
[1759716136237,7.93,231.17,231.04,11.5141]
[1759716137346,7.93,231.17,231.04,24.70651365]
[1759716139844,7.96,231.17,231.04,20.81241365]
[1759716140146,2.99280653,231.18,231.04,20.81241365]
[1759716140347,7.96,231.17,231.04,20.81241365]
[1759716140648,89.46,231.17,231.05,3.894]
[1759716140945,7.96,231.17,231.07,60.5672]
[1759716141141,7.96,231.22,231.1,7.93]
[1759716141341,7.96,231.22,231.12,3.8928]
[1759716141747,7.96,231.22,231.1,7.93]
[1759716141948,7.96,231.22,231.11,60.5578]
[1759716142144,2.99280653,231.25,231.12,7.93]
[1759716143756,7.96,231.24,231.12,7.93]
[1759716147352,7.96,231.24,231.15,3.8923]
[1759716147549,7.96,231.24,231.12,7.93]
[1759716148056,7.96,231.24,231.12,11.8227]
[1759716149456,7.96,231.21,231.09,3.8932]
[1759716151054,7.96,231.21,231.11,3.893]
[1759716151654,7.96,231.21,231.08,3.8934]
[1759716152951,7.96,231.21,231.1,3.8932]
[1759716153457,61.28,231.2,231.12,3.8928]
[1759716153759,61.28,231.2,231.12,11.5828]
[1759716153957,7.96,231.21,231.12,11.5828]
[1759716154153,114.88,231.21,231.12,11.5828]
[1759716154956,114.88,231.21,231.12,3.8928]
[1759716158152,114.88,231.21,231.09,3.8932]
[1759716158555,114.88,231.21,231.11,3.893]
[1759716158858,7.96,231.21,231.1,60.5612]
[1759716159058,7.96,231.21,231.11,7.69]
[1759716160657,7.96,231.21,231.11,11.5829]
[1759716162558,7.96,231.21,231.12,3.8927]
[1759716163359,7.96,231.21,231.05,92.9136]
[1759716163360,8.03,231.27,231.15,7.69]
[1759716163560,58.53,231.27,231.15,7.69]
[1759716164658,58.53,231.27,231.17,3.892]
[1759716167360,58.53,231.27,231.15,7.69]
[1759716168762,58.53,231.27,231.15,11.5822]
[1759716168964,58.53,231.27,231.15,7.69]
[1759716169661,1.94499692,231.24,231.11,7.54]
[1759716169961,7.99,231.23,231.11,7.54]
[1759716170365,7.99,231.15,231.06,7.54]
[1759716172764,7.99,231.15,231.08,3.8934]
[1759716173567,7.99,231.15,231.06,7.54]
[1759716174577,7.99,231.15,231.08,3.8935]
[1759716175075,7.99,231.15,231.1,3.8932]
[1759716175380,18.98,231.2,231.11,7.54]
[1759716175776,7.99,231.19,231.11,7.54]
[1759716175972,7.99,231.19,231.07,16.15318271]
[1759716176181,7.99,231.19,231.07,12.25958271]
[1759716177588,7.99,231.19,231.11,3.893]
[1759716178785,7.99,231.19,231.08,8.61298271]
[1759716178985,7.99,231.19,231.08,3.8934]
[1759716179683,40.6717,231.2,231.1,3.8932]
[1759716179883,7.99,231.19,231.1,3.8932]
[1759716180285,7.99,231.19,231.08,3.8935]
[1759716180791,7.99,231.16,231.08,3.8935]
[1759716181493,7.99,231.16,231.06,3.8939]
[1759716181684,7.99,231.16,231.04,20.73241365]
[1759716181894,7.99,231.12,231.0,7.54]
[1759716183086,7.99,231.12,231.0,11.4347]
[1759716183391,7.99,231.1,231.0,11.4347]
[1759716184391,7.99,231.1,231.0,20.60878701]
[1759716184589,7.99,231.1,231.01,7.54]
[1759716184894,7.99,231.14,231.01,7.54]
[1759716185093,27.01,231.14,231.01,7.54]
[1759716185594,45.07,231.14,231.04,3.8942]
[1759716185890,45.07,231.14,231.01,7.54]
[1759716186095,61.71,231.14,231.01,7.54]
[1759716186693,7.99,231.14,231.01,7.54]
[1759716186991,1.94499692,231.15,231.01,7.54]
[1759716186992,7.99,231.12,231.01,7.54]
[1759716187192,30.37,231.12,231.01,7.54]
[1759716187690,55.5229,231.12,231.01,11.4346]
[1759716187890,7.99,231.11,231.01,11.4346]
[1759716188893,88.77,231.11,231.01,11.4346]
[1759716189195,82.72499692,231.11,230.99,12.94343629]
[1759716189390,1.94499692,231.07,230.97,7.54]
[1759716189599,11.884,231.06,230.97,7.54]
[1759716191897,7.99,231.03,230.93,13.26964424]
[1759716193098,7.99,231.03,230.93,26.49560924]
[1759716193499,7.99,231.01,230.89,8.29356482]
[1759716194998,7.99,231.01,230.91,3.8964]
[1759716195195,7.99,231.01,230.92,7.54]
[1759716195992,7.99,231.01,230.92,20.24713709]
[1759716197395,39.82,231.04,230.92,20.24713709]
[1759716197591,1.94499692,231.01,230.92,20.24713709]
[1759716197794,7.89,231.0,230.92,12.70713709]
[1759716197991,7.89,230.96,230.88,7.62]
[1759716202701,7.89,230.96,230.88,20.85015279]
[1759716202998,7.89,230.96,230.85,7.62]
[1759716203501,7.89,230.92,230.8,4.65203416]
[1759716203702,7.89,230.92,230.81,7.62]
[1759716205904,7.89,230.9,230.81,7.62]
[1759716206601,49.26,230.91,230.77,20.83306859]
[1759716206801,7.89,230.9,230.77,20.83306859]
[1759716207603,51.20499692,230.91,230.77,20.83306859]
[1759716207805,51.20499692,230.91,230.8,3.8982]
[1759716207806,7.89,230.9,230.8,3.8982]
[1759716208212,98.55,230.9,230.8,3.8982]
[1759716208508,98.55,230.9,230.78,3.8986]
[1759716209304,7.89,230.88,230.79,3.8983]
[1759716209509,7.89,230.88,230.8,7.62]
[1759716209899,7.89,230.88,230.81,3.8981]
[1759716210102,7.89,230.88,230.8,7.62]
[1759716210804,7.89,230.88,230.8,11.5182]
[1759716211004,7.89,230.9,230.81,7.62]
[1759716211306,7.89,230.9,230.75,7.62]
[1759716212108,7.89,230.9,230.8,7.62]
[1759716213013,7.89,230.9,230.8,11.5181]
[1759716213911,7.89,230.9,230.83,7.62]
[1759716215412,7.75,230.94,230.83,7.62]
[1759716216717,7.75,230.94,230.85,3.8974]
[1759716217215,7.75,230.94,230.86,3.8971]
[1759716218414,7.75,230.94,230.85,7.59]
[1759716219617,7.75,230.94,230.85,11.4874]
[1759716221417,7.75,230.94,230.86,7.59]
[1759716222220,7.75,230.94,230.83,3.8977]
[1759716222221,1.94499692,230.94,230.83,7.59]
[1759716222517,7.75,230.93,230.78,7.59]
[1759716222718,7.75,230.91,230.8,3.8981]
[1759716224121,7.75,230.91,230.81,7.59]
[1759716225023,1.24880495,230.89,230.81,7.59]
[1759716225616,7.75,230.88,230.81,7.59]
[1759716230334,1.24880495,230.89,230.81,7.59]
[1759716230921,1.24880495,230.89,230.81,11.4881]
[1759716231523,1.24880495,230.89,230.82,7.58]
[1759716232119,1.24880495,230.89,230.82,11.4778]
[1759716233218,9.26880495,230.92,230.84,7.58]
[1759716234730,9.26880495,230.92,230.84,11.4775]
[1759716235425,3.8952,230.99,230.87,7.58]
[1759716235626,1.24880495,230.96,230.87,7.58]
[1759716235830,8.02,230.98,230.88,1.24880495]
[1759716236026,8.02,230.98,230.89,7.58]
[1759716236627,8.02,230.95,230.84,7.58]
[1759716236833,1.24880495,230.94,230.84,7.58]
[1759716237031,1.24880495,230.94,230.84,8.82880495]
[1759716237732,8.02,230.93,230.84,7.58]
[1759716238027,1.24880495,230.91,230.84,7.58]
[1759716238332,8.02,230.9,230.84,7.58]
[1759716240330,8.02,230.9,230.81,7.58]
[1759716241529,1.24880495,230.94,230.83,7.58]
[1759716241836,9.26880495,230.94,230.83,7.58]
[1759716242036,1.24880495,230.91,230.83,7.58]
[1759716242230,1.24880495,230.88,230.8,4.71958271]
[1759716242433,8.02,230.87,230.79,7.58]
[1759716242736,8.02,230.83,230.76,4.71958271]
[1759716243032,1.24880495,230.81,230.75,4.71958271]
[1759716243232,8.02,230.8,230.74,12.29958271]
[1759716243435,8.02,230.8,230.74,7.58]
[1759716244334,1.24880495,230.83,230.74,7.58]
[1759716244726,57.06,230.85,230.75,12.29958271]
[1759716244727,8.02,230.85,230.75,12.29958271]
[1759716244929,8.02,230.85,230.76,7.58]
[1759716245132,8.02,230.85,230.76,16.19838271]
[1759716245341,8.02,230.85,230.76,11.4788]
[1759716245641,8.02,230.85,230.76,16.19838271]
[1759716245931,8.02,230.85,230.76,11.4788]
[1759716246239,1.24880495,230.88,230.79,7.58]
[1759716246432,8.02,230.87,230.79,7.58]
[1759716246833,8.02,230.87,230.75,3.899]
[1759716246834,8.02,230.84,230.76,4.71958271]
[1759716247126,1.24880495,230.82,230.75,7.58]
[1759716247935,9.26880495,230.82,230.75,7.58]
[1759716248136,9.26880495,230.82,230.73,13.22313418]
[1759716248332,9.26880495,230.82,230.72,12.29958271]
[1759716248534,9.26880495,230.82,230.73,4.71958271]
[1759716248735,8.02,230.89,230.74,7.58]
[1759716248934,8.02,230.89,230.75,13.54838766]
[1759716248935,1.24880495,230.85,230.75,13.54838766]
[1759716249441,1.24880495,230.85,230.75,8.82880495]
[1759716250040,1.24880495,230.85,230.75,17.44738766]
[1759716250543,9.26880495,230.86,230.75,17.44738766]
[1759716250740,9.26880495,230.86,230.75,12.72780495]
[1759716250938,9.26880495,230.86,230.75,17.44738766]
[1759716251241,9.26880495,230.86,230.75,12.72780495]
[1759716251643,1.24880495,230.88,230.78,7.58]
[1759716251938,4.04514002,230.93,230.79,60.6424]
[1759716252139,4.04514002,230.93,230.85,7.58]
[1759716252443,1.24880495,230.98,230.87,7.58]
[1759716253545,1.24880495,230.98,230.88,3.8969]
[1759716254142,1.24880495,230.98,230.87,7.58]
[1759716255146,1.24880495,230.98,230.9,7.58]
[1759716255445,315.06,231.0,230.9,7.58]
[1759716256140,1.24880495,231.01,230.92,7.58]
[1759716256344,1.24880495,231.01,230.92,8.82880495]
[1759716256746,1.24880495,231.01,230.93,3.8961]
[1759716257438,8.02,231.03,230.94,7.58]
[1759716257642,1.24880495,231.01,230.88,4.71958271]
[1759716257844,7.98,231.0,230.89,7.46]
[1759716258043,7.98,230.97,230.89,7.46]
[1759716258241,7.98,230.94,230.85,7.46]
[1759716258441,1.24880495,230.92,230.85,7.46]
[1759716259042,1.24880495,230.98,230.87,7.46]
[1759716261548,1.24880495,230.98,230.87,11.357]
[1759716263543,1.24880495,230.98,230.87,7.46]
[1759716263749,7.98,230.97,230.87,7.46]
[1759716264046,7.98,230.95,230.87,7.46]
[1759716264251,1.24880495,230.93,230.87,7.46]
[1759716264652,7.98,230.92,230.81,11.3579]
[1759716264848,1.24880495,230.92,230.82,1.24880495]
[1759716265052,1.24880495,230.92,230.83,7.46]
[1759716265755,1.24880495,230.92,230.83,11.3577]
[1759716267448,1.24880495,230.92,230.84,7.46]
[1759716267657,1.24880495,230.98,230.86,7.46]
[1759716267854,9.22880495,231.01,230.89,7.46]
[1759716268158,9.22880495,231.01,230.91,3.8964]
[1759716268355,9.22880495,231.01,230.92,7.46]
[1759716268545,316.40880495,231.04,230.92,7.46]
[1759716268750,7.98,231.06,230.95,7.46]
[1759716268751,9.22880495,231.06,230.95,7.46]
[1759716268955,9.22880495,231.06,230.96,1.24880495]
[1759716269347,9.22880495,231.06,230.96,5.14430495]
[1759716269757,9.22880495,231.06,230.97,7.46]
[1759716269958,9.22880495,231.06,230.98,3.8952]
[1759716270254,9.22880495,231.06,230.97,7.46]
[1759716270450,1.24880495,231.06,230.97,7.46]
[1759716271452,1.24880495,231.06,230.97,20.69148928]
[1759716271654,1.24880495,231.06,230.97,7.46]
[1759716271954,107.22,231.11,230.95,12.88075167]
[1759716271955,7.98,231.02,230.95,12.88075167]
[1759716272156,9.22880495,231.0,230.95,20.34075167]
[1759716272350,1.24880495,231.03,230.96,7.46]
[1759716273056,1.24880495,231.03,230.93,1.24880495]
[1759716273355,1.24880495,231.03,230.93,12.89226453]
[1759716273558,1.24880495,231.03,230.92,7.46]
[1759716274657,1.24880495,231.03,230.92,11.3562]
[1759716276460,1.24880495,231.0,230.92,7.46]
[1759716277260,7.41,230.96,230.87,7.48]
[1759716277463,1.24880495,230.97,230.87,7.48]
[1759716277760,1.24880495,231.0,230.87,1.24880495]
[1759716277955,1.24880495,231.0,230.9,1.24880495]
[1759716278258,1.24880495,231.0,230.91,7.48]
[1759716278961,1.24880495,231.0,230.91,20.44220474]
[1759716279257,8.65880495,231.0,230.91,20.44220474]
[1759716279560,1.24880495,230.99,230.91,20.44220474]
[1759716280255,1.24880495,230.99,230.92,3.8962]
[1759716281766,1.24880495,230.99,230.91,20.44220474]
[1759716281961,23.79,231.04,230.92,7.48]
[1759716282153,1.24880495,231.0,230.92,7.48]
[1759716282358,1.24880495,231.0,230.93,3.896]
[1759716282861,1.24880495,231.03,230.94,7.48]
[1759716284562,1.24880495,231.03,230.94,11.3759]
[1759716285064,7.41,231.04,230.94,11.3759]
[1759716285065,9.35904047,231.04,230.94,11.3759]
[1759716285365,9.35904047,231.04,230.97,7.48]
[1759716285567,1.94904047,231.04,230.97,7.48]
[1759716287566,1.94904047,231.04,230.97,11.3754]
[1759716289569,1.94904047,231.04,230.97,7.48]
[1759716294564,1.94904047,231.04,230.98,3.8952]
[1759716295464,1.94904047,231.04,230.97,7.48]
[1759716295465,7.99,231.03,230.97,7.48]
[1759716295775,1.94904047,231.0,230.92,7.93]
[1759716295973,9.93904047,231.0,230.92,7.93]
[1759716299069,9.93904047,231.0,230.89,8.61628271]
[1759716299276,1.94904047,230.96,230.88,7.93]
[1759716299478,7.99,230.95,230.88,7.93]
[1759716299668,7.99,230.95,230.84,7.93]
[1759716300074,7.99,230.95,230.84,11.8276]
[1759716300270,1.94904047,230.92,230.84,7.93]
[1759716300475,7.99,230.91,230.84,7.93]
[1759716300866,1.94904047,230.98,230.84,7.93]
[1759716301071,7.99,231.0,230.87,7.93]
[1759716301376,33.93,231.04,230.91,7.93]
[1759716302671,33.93,231.04,230.95,3.8957]
[1759716302970,33.93,231.04,230.95,11.8257]
[1759716303671,1.94904047,231.05,230.95,7.93]
[1759716304567,7.99,231.08,230.98,3.8952]
[1759716304772,315.06,231.1,230.98,7.93]
[1759716305071,315.06,231.1,230.99,7.93]
[1759716305273,7.99,231.13,230.99,7.93]
[1759716306571,4.154708,231.14,231.05,7.93]
[1759716306968,7.99,231.17,231.08,3.8935]
[1759716307173,1.94904047,231.2,231.09,7.93]
[1759716307376,7.99,231.19,231.09,7.93]
[1759716311885,107.0,231.21,231.09,7.93]
[1759716313083,107.0,231.21,231.11,7.93]
[1759716313885,315.08,231.23,231.13,7.93]
[1759716314182,106.98,231.26,231.13,7.93]
[1759716314582,106.98,231.26,231.1,62.50964047]
[1759716314583,106.98,231.26,231.15,7.93]
[1759716314972,106.98,231.27,231.15,7.93]
[1759716317083,106.98,231.27,231.15,11.8223]
[1759716320392,106.98,231.27,231.17,3.8919]
[1759716320889,106.98,231.27,231.15,7.93]
[1759716321588,7.29,231.26,231.15,7.93]
[1759716321793,1.94904047,231.23,231.1,8.0]
[1759716322091,7.29,231.22,231.1,8.0]
[1759716322391,7.29,231.22,231.09,68.5637]
[1759716322686,7.29,231.28,231.11,9.94904047]
[1759716323593,7.29,231.28,231.13,8.0]
[1759716325586,7.29,231.26,231.13,8.0]
[1759716326592,7.29,231.26,231.13,11.8927]
[1759716327295,7.29,231.26,231.13,8.0]
[1759716327882,1.94904047,231.25,231.13,8.0]
[1759716328088,11.1809,231.24,231.13,8.0]
[1759716328286,7.29,231.24,231.08,1.94904047]
[1759716328491,1.94904047,231.21,231.09,8.0]
[1759716328690,7.29,231.2,231.09,8.0]
[1759716329396,7.29,231.2,231.1,3.8932]
[1759716329897,15.08,231.24,231.11,8.0]
[1759716330093,7.29,231.24,231.13,8.0]
[1759716331598,7.29,231.29,231.16,3.8922]
[1759716331795,7.29,231.29,231.13,8.0]
[1759716332589,7.29,231.29,231.18,3.8918]
[1759716332995,7.29,231.29,231.19,7.62]
[1759716334600,7.96,231.27,231.14,3.8925]
[1759716335194,7.96,231.25,231.13,7.62]
[1759716335800,3.8909,231.24,231.13,7.62]
[1759716335994,7.96,231.23,231.13,7.62]
[1759716339094,7.96,231.23,231.07,73.45922112]
[1759716339296,7.96,231.29,231.14,7.62]
[1759716339493,7.96,231.29,231.16,7.62]
[1759716340602,7.96,231.29,231.19,3.8917]
[1759716340799,7.96,231.29,231.2,7.62]
[1759716340995,7.96,231.33,231.12,31.84]
[1759716341198,7.96,231.33,231.13,7.62]
[1759716342498,8.12,231.34,231.18,3.8918]
[1759716342797,7.96,231.33,231.19,7.62]
[1759716343703,3.8897,231.31,231.19,7.62]
[1759716343899,7.96,231.3,231.19,7.62]
[1759716345903,11.85,231.3,231.19,7.62]
[1759716348105,3.8902,231.28,231.19,7.62]
[1759716348808,7.96,231.3,231.19,7.62]
[1759716350703,7.96,231.3,231.2,3.8915]
[1759716353113,1.24435564,231.29,231.2,3.8915]
[1759716353702,1.24435564,231.29,231.19,7.62]
[1759716354108,1.24435564,231.26,231.19,7.62]
[1759716354708,7.69,231.28,231.19,7.62]
[1759716354898,7.69,231.28,231.21,3.8912]
[1759716355102,8.93435564,231.33,231.23,7.88]
[1759716355705,1.24435564,231.33,231.25,7.88]
[1759716357201,323.89435564,231.36,231.25,7.88]
[1759716358707,327.78315564,231.36,231.25,7.88]
[1759716360010,8.93435564,231.36,231.25,7.88]
[1759716362410,7.69,231.36,231.25,9.12435564]
[1759716363009,1.24435564,231.34,231.25,7.88]
[1759716363215,7.69,231.33,231.25,7.88]
[1759716363518,7.69,231.3,231.21,11.7713]
[1759716363717,7.69,231.3,231.21,7.88]
[1759716365012,1.24435564,231.28,231.21,7.88]
[1759716365215,7.69,231.27,231.17,7.88]
[1759716365715,1.24435564,231.25,231.17,7.88]
[1759716366317,7.69,231.24,231.17,7.88]
[1759716367115,1.24435564,231.19,231.13,7.88]
[1759716368415,7.69,231.21,231.09,8.5456967]
[1759716368416,1.24435564,231.16,231.1,4.71958271]
[1759716368616,1.24435564,231.13,231.1,4.71958271]
[1759716368820,1.24435564,231.13,231.08,4.71958271]
[1759716369313,1.24435564,231.13,231.07,4.71958271]
[1759716369520,8.93435564,231.13,231.08,12.59958271]
[1759716369909,7.69,231.12,231.08,4.71958271]
[1759716370512,1.24435564,231.13,231.08,4.71958271]
[1759716370719,7.69,231.09,231.03,4.71958271]
[1759716370919,7.69,231.09,231.01,4.71958271]
[1759716371421,7.69,231.09,231.0,7.88]
[1759716371612,7.69,231.09,231.0,20.87479805]
[1759716371810,1.24435564,231.07,230.98,5.45577477]
[1759716372010,1.24435564,231.06,230.98,5.45577477]
[1759716372623,8.93435564,231.03,230.98,5.45577477]
[1759716372823,8.93435564,231.03,230.98,18.44131269]
[1759716373514,7.69,231.02,230.98,18.44131269]
[1759716373716,7.69,231.02,230.98,5.45577477]
[1759716373914,7.69,231.02,230.98,13.33577477]
[1759716374313,7.69,231.02,230.98,5.45577477]
[1759716375617,8.93435564,231.03,230.94,62.72]
[1759716375823,1.24435564,231.0,230.94,20.73535138]
[1759716377126,1.24435564,231.0,230.94,12.85535138]
[1759716377318,7.69,230.99,230.89,7.88]
[1759716379426,7.69,230.99,230.89,20.63164428]
[1759716379626,7.69,230.99,230.89,7.88]
[1759716380129,1.24435564,231.02,230.9,7.56]
[1759716380736,7.86,231.04,230.92,7.56]
[1759716380936,3.94108749,231.12,230.91,1.24435564]
[1759716380937,9.10435564,231.09,230.97,1.24435564]
[1759716381141,9.10435564,231.09,231.01,7.56]
[1759716381338,3.94108749,231.12,231.01,7.56]
[1759716381642,1.24435564,231.13,231.01,7.56]
[1759716382540,1.24435564,231.13,231.01,11.4546]
[1759716383035,7.86,231.08,230.96,3.8955]
[1759716383240,7.86,231.08,230.97,7.56]
[1759716384337,7.86,231.08,230.97,11.4553]
[1759716384542,7.86,231.08,230.98,7.56]
[1759716385450,2.9964941,231.15,231.0,7.56]
[1759716385451,7.86,231.14,231.0,7.56]
[1759716387641,7.86,231.14,231.02,7.56]
[1759716391943,3.8929,231.12,231.02,7.56]
[1759716392148,7.86,231.11,230.97,7.56]
[1759716392849,45.34,231.1,230.97,7.56]
[1759716393050,82.34,231.09,230.97,7.56]
[1759716393850,7.46,231.08,230.97,7.56]
[1759716397555,7.46,231.08,230.97,11.4554]
[1759716400454,7.46,231.08,230.97,7.56]
[1759716400854,106.94,231.1,230.97,7.56]
[1759716400855,7.46,231.12,230.97,7.56]
[1759716402056,7.46,231.12,231.03,7.31]
[1759716404055,7.46,231.07,230.95,1.24606226]
[1759716404362,7.46,231.07,230.96,7.31]
[1759716405364,7.46,231.07,230.96,11.2055]
[1759716405562,7.46,231.07,230.96,7.31]
[1759716405763,7.46,231.11,231.03,7.31]
[1759716406357,7.46,231.11,231.04,1.24606226]
[1759716407162,7.46,231.11,231.03,7.31]
[1759716412869,7.46,231.11,230.96,1.94672811]
[1759716413165,7.46,231.11,230.97,7.64]
[1759716413563,11.353,231.11,230.97,7.64]
[1759716413765,7.78,231.09,230.97,7.64]
[1759716413969,3.02619916,231.08,230.97,7.64]
[1759716415666,3.02619916,231.08,230.95,7.64]
[1759716416068,3.02619916,231.08,230.97,7.64]
[1759716416266,7.78,231.09,231.02,7.64]
[1759716418875,7.78,231.09,230.98,3.8952]
[1759716419174,3.02987674,231.08,230.98,11.5352]
[1759716419571,7.78,231.07,230.98,7.64]
[1759716422268,11.6744,231.03,230.93,13.23462505]
[1759716422470,7.78,231.03,230.93,7.64]
[1759716422670,1.94672811,231.0,230.89,20.72743308]
[1759716422872,1.94672811,231.0,230.89,7.64]
[1759716423071,1.94672811,231.0,230.9,3.8966]
[1759716424174,1.94672811,231.0,230.92,3.8962]
[1759716424375,1.94672811,231.0,230.91,7.64]
[1759716426277,7.78,230.99,230.91,7.64]
[1759716427179,1.94672811,231.0,230.89,13.25235707]
[1759716427377,7.78,230.99,230.87,7.64]
[1759716427577,9.72672811,230.95,230.87,7.64]
[1759716427977,7.78,230.95,230.87,7.64]
[1759716428274,7.78,231.01,230.89,7.64]
[1759716428475,1.94672811,231.03,230.89,7.64]
[1759716428678,1.94672811,231.03,230.94,3.8959]
[1759716428980,25.31010699,231.06,230.95,7.64]
[1759716428981,11.73010699,231.06,230.95,7.64]
[1759716429370,3.03398278,231.05,230.95,7.64]
[1759716429571,11.73010699,231.06,230.95,7.64]
[1759716429770,3.03400039,231.05,230.95,7.64]
[1759716430271,11.73010699,231.06,230.95,7.64]
[1759716433374,11.73010699,231.06,230.95,11.5357]
[1759716434172,4.83016453,231.16,230.96,60.5982]
[1759716434377,7.78,231.15,231.0,7.64]
[1759716434577,7.78,231.15,231.05,3.894]
[1759716434778,7.78,231.19,231.03,7.64]
[1759716435084,3.03201581,231.18,231.03,7.64]
[1759716435283,7.78,231.19,231.03,7.64]
[1759716435485,7.78,231.19,231.08,7.64]